{"text_format":"3","workbook":"xlsx","n_sheets":1,"sheets":[" sheet1"],"not_rendered":{"defined_names":2},"read":"whole","date_system":"1900"}

{"sheet":" sheet1","index":0,"n_rows":146,"n_cols":9,"rows_kept":146,"merged":[[0,0,0,8],[1,0,1,8],[2,0,3,0],[2,1,3,1],[2,2,3,2],[2,3,2,8],[4,0,6,0],[7,0,9,0],[10,0,17,0],[18,0,20,0],[21,0,30,0],[31,0,37,0],[38,0,49,0],[50,0,73,0],[74,0,86,0],[87,0,90,0],[91,0,92,0],[93,0,93,2],[93,3,93,7],[94,0,94,8],[95,0,96,0],[95,1,96,1],[95,2,96,2],[95,3,95,8],[97,0,99,0],[100,0,107,0],[108,0,114,0],[115,0,127,0],[128,0,135,0],[136,0,139,0],[140,0,143,0],[144,0,144,2],[144,3,144,7],[145,0,145,2],[145,3,145,7]]}
["附件1：《福建省烟草专卖局（公司）2025年招聘（第二批）计划表》"]
["管理类招聘岗位（79个）"]
["单位","岗位编码","具体用人单位","招聘需求"]
[{"$nulls":3},"岗位类别","岗位名称","学历要求","专业要求","需求\n人数","其它要求"]
["福州市烟草专卖局（公司）","A01","闽清县烟草专卖局","管理类","综合事务员","大学本科及以上","计算机科学与技术及相关专业",1]
[null,"A02","罗源县烟草专卖局","管理类","信息管理员","大学本科及以上","计算机科学与技术及相关专业",1]
[null,null,"小计",{"$nulls":4},{"$f":"SUM(H5:H6)","v":2}]
["厦门市烟草专卖局（公司）","D01","厦门市烟草专卖局第一分局","管理类","文秘","硕士研究生及以上","中国语言文学、新闻传播学等相关专业",1]
[null,"D02","厦门市烟草专卖局第一分局","管理类","信息管理员","硕士研究生及以上","软件工程及相关专业",1]
[null,null,"小计",{"$nulls":4},{"$f":"SUM(H8:H9)","v":2}]
["宁德市烟草专卖局（公司）","J01","宁德市烟草专卖局（本级）","管理类","信息管理员","硕士研究生","计算机科学与技术及相关专业",2]
[null,"J02","福安市烟草专卖局","管理类","法制员","大学本科","法学、知识产权、纪检监察",1,"具备法律职业资格A证"]
[null,"J03","宁德市蕉城区烟草专卖局","管理类","法制员","硕士研究生","法学、知识产权、纪检监察学等相关专业",1,"具备法律职业资格A证"]
[null,"J04","福鼎市烟草专卖局","管理类","财务管理员","大学本科","会计学、财务管理、审计学",1]
[null,"J05","古田县烟草专卖局","管理类","工程项目管理员","大学本科及以上","工程管理、工程造价、土木工程等相关专业",1]
[null,"J06","屏南县烟草专卖局","管理类","法制员","大学本科","法学、知识产权、纪检监察",1,"具备法律职业资格A证"]
[null,"J07","寿宁县烟草专卖局","管理类","财务管理员","大学本科","会计学、财务管理、审计学",1]
[null,null,"小计",{"$nulls":4},{"$f":"SUM(H11:H17)","v":8}]
["莆田市烟草专卖局（公司）","B01","仙游县烟草专卖局","管理类","法制员","大学本科及以上","法学类",1,"具备法律职业资格A证"]
[null,"B02","仙游县烟草专卖局","管理类","策略管理员","大学本科","金融学类",1]
[null,null,"小计",{"$nulls":4},{"$f":"SUM(H19:H20)","v":2}]
["泉州市烟草专卖局（公司）","C01","永春县烟草专卖局","管理类","纪检监察员","大学本科及以上","纪检监察、司法警察学、司法鉴定学等相关专业",1,"中共党员"]
[null,"C02","南安市烟草专卖局","管理类","信息分析员","大学本科","侦查学、经济犯罪侦查、技术侦查学",1]
[null,"C03","惠安县烟草专卖局","管理类","信息分析员","大学本科","侦查学、经济犯罪侦查、技术侦查学",1]
[null,"C04","永春县烟草专卖局","管理类","法制员","大学本科及以上","法学、纪检监察、信用风险管理与法律防控等相关专业",1,"具备法律职业资格A证"]
[null,"C05","泉州市鲤城区烟草专卖局","管理类","综合事务员","硕士研究生","网络空间安全及相关专业",1]
[null,"C06","泉州市丰泽区烟草专卖局","管理类","行政事务管理员","硕士研究生","公共政策、公共管理学、行政管理等相关专业",1]
[null,"C07","泉州市丰泽区烟草专卖局","管理类","质量检测员","硕士研究生","电气工程及相关专业",1]
[null,"C08","泉州市局卷烟物流配送中心","管理类","信息管理员","大学本科及以上","电气工程及其自动化、电气工程与智能控制、电机电器智能化等相关专业",1]
[null,"C09","安溪县烟草专卖局","管理类","信息分析员","大学本科及以上","数据科学与大数据技术、计算机科学与技术、软件工程、信息管理与信息系统等相关专业",1]
[null,null,"小计",{"$nulls":4},{"$f":"SUM(H22:H30)","v":9}]
["漳州市烟草专卖局（公司）","E01","诏安县烟草专卖局","管理类","资金管理员","硕士研究生","会计学、税务等相关专业",1]
[null,"E02","漳州市局卷烟物流配送中心","管理类","综合事务员","硕士研究生","计算机科学与技术、电子信息等相关专业",1]
[null,"E03","诏安县烟草专卖局","管理类","综合事务员","大学本科","侦查学、经济犯罪侦查、技术侦查学",1]
[null,"E04","漳州市长泰区烟草专卖局","管理类","综合事务员","大学本科","工商管理、市场营销、劳动关系",1]
[null,"E05","诏安县烟草专卖局","管理类","宣传联络员","大学本科","汉语言文学、汉语言、秘书学、新闻传播学类",1]
[null,"E06","华安县烟草专卖局","管理类","财务管理员","大学本科","财务管理",1]
[null,null,"小计",{"$nulls":4},{"$f":"SUM(H32:H37)","v":6}]
["龙岩市烟草专卖局（公司）","F01","龙岩市永定区烟草专卖局","管理类","专职科研人员","硕士研究生","作物学、植物保护、农业等相关专业",1]
[null,"F02","长汀县烟草专卖局","管理类","生产管理员","硕士研究生","作物学及相关专业",1]
[null,"F03","长汀县烟草专卖局","管理类","生产管理员","大学本科及以上","植物生产类及相关专业",1]
[null,"F04","武平县烟草专卖局","管理类","政工管理员","大学本科及以上","中国语言文学类及相关专业",1]
[null,"F05","连城县烟草专卖局","管理类","情报调研员","大学本科","公安学类",1]
[null,"F06","上杭县烟草专卖局","管理类","财务管理员","大学本科及以上","会计学、财务管理、审计学等相关专业",1]
[null,"F07","武平县烟草专卖局","管理类","信息管理员","大学本科","计算机类",1]
[null,"F08","龙岩市永定区烟草专卖局","管理类","生产管理员","大学本科","植物生产类",1]
[null,"F09","漳平市烟草专卖局","管理类","案件查办员","大学本科及以上","公安学类及相关专业",1]
[null,"F10","长汀县烟草专卖局","管理类","法制员","大学本科及以上","法学类及相关专业",1,"具备法律职业资格A证"]
[null,"F11","长汀县烟草专卖局","管理类","财务管理员","大学本科","会计学、财务管理、审计学",1]
[null,null,"小计",{"$nulls":4},{"$f":"SUM(H39:H49)","v":11}]
["三明市烟草专卖局（公司）","G01","三明市烟草专卖局（本级）","管理类","纪检监察员","硕士研究生","法学、纪检监察学等相关专业",1,"中共党员，大学本科为法学类专业"]
[null,"G02","清流县烟草专卖局","管理类","生产管理员","大学本科及以上","植物生产类及相关专业",1]
[null,"G03","泰宁县烟草专卖局","管理类","生产管理员","大学本科及以上","植物生产类及相关专业",1]
[null,"G04","泰宁县烟草专卖局","管理类","综合事务员","大学本科","侦查学、经济犯罪侦查、技术侦查学",1]
[null,"G05","大田县烟草专卖局","管理类","生产管理员","大学本科及以上","植物生产类及相关专业",1]
[null,"G06","尤溪县烟草专卖局","管理类","法制员","大学本科","法学类",1,"具备法律职业资格A证"]
[null,"G07","建宁县烟草专卖局","管理类","法制员","大学本科","法学、纪检监察、信用风险管理与法律防控",1,"具备法律职业资格A证"]
[null,"G08","将乐县烟草专卖局","管理类","法制员","大学本科","法学类",1,"具备法律职业资格A证"]
[null,"G09","宁化县烟草专卖局","管理类","信息管理员","大学本科","计算机类",1]
[null,"G10","三明市局卷烟物流配送中心","管理类","机械设备管理员","大学本科","电气工程及其自动化、电气工程与智能控制、电机电器智能化",1]
[null,"G11","永安市烟草专卖局","管理类","卷烟内务信息员","大学本科","工商管理类",1]
[null,"G12","尤溪县烟草专卖局","管理类","生产管理员","大学本科及以上","植物生产类及相关专业",1]
[null,"G13","明溪县烟草专卖局","管理类","会计","大学本科","会计学、财务管理、审计学",1]
[null,"G14","明溪县烟草专卖局","管理类","专卖管理员","大学本科","侦查学、经济犯罪侦查、技术侦查学",1]
[null,"G15","清流县烟草专卖局","管理类","会计","大学本科","会计学、财务管理、审计学",1]
[null,"G16","清流县烟草专卖局","管理类","信息管理员","大学本科","计算机类",1]
[null,"G17","三明市沙县区烟草专卖局","管理类","人事管理员","大学本科","工商管理类",1]
[null,"G18","建宁县烟草专卖局","管理类","信息管理员","大学本科","电子信息工程、电子科学与技术、信息工程",1]
[null,"G19","建宁县烟草专卖局","管理类","生产管理员","大学本科及以上","植物生产类及相关专业",1]
[null,"G20","泰宁县烟草专卖局","管理类","安全管理员","大学本科","安全科学与工程类",1]
[null,"G21","将乐县烟草专卖局","管理类","安全管理员","大学本科","安全科学与工程类",1]
[null,"G22","宁化县烟草专卖局","管理类","试验员","大学本科","化学生物学、化学、应用化学",1]
[null,"G23","大田县烟草专卖局","管理类","专卖管理员","大学本科","公安学类",1]
[null,null,"小计",{"$nulls":4},{"$f":"SUM(H51:H73)","v":23}]
["南平市烟草专卖局（公司）","H01","南平市延平区烟草专卖局","管理类","网络管理员","硕士研究生","计算机科学与技术及相关专业",1]
[null,"H02","武夷山市烟草专卖局","管理类","生产管理员","硕士研究生","作物学、植物保护等相关专业",1]
[null,"H03","南平市建阳区烟草专卖局","管理类","安全管理员","大学本科","安全科学与工程类",1]
[null,"H04","武夷山市烟草专卖局","管理类","会计","大学本科及以上","会计学、财务管理、审计学等相关专业",1]
[null,"H05","邵武市烟草专卖局","管理类","法制员","大学本科","法学、侦查学、经济犯罪侦查、技术侦查学",1,"具备法律职业资格A证"]
[null,"H06","浦城县烟草专卖局","管理类","生产管理员","大学本科及以上","植物生产类及相关专业",1]
[null,"H07","浦城县烟草专卖局","管理类","内务信息员","大学本科及以上","数据科学与大数据技术、计算机科学与技术、软件工程等相关专业",1]
[null,"H08","浦城县烟草专卖局","管理类","法制员","大学本科及以上","法学、纪检监察、侦查学等相关专业",1,"具备法律职业资格A证"]
[null,"H09","光泽县烟草专卖局","管理类","生产管理员","大学本科及以上","植物生产类及相关专业",1]
[null,"H10","松溪县烟草专卖局","管理类","生产管理员","大学本科及以上","植物生产类及相关专业",1]
[null,"H11","政和县烟草专卖局","管理类","信息管理员","大学本科","计算机类",1]
[null,"H12","顺昌县烟草专卖局","管理类","生产管理员","大学本科及以上","植物生产类及相关专业",1]
[null,null,"小计",{"$nulls":4},{"$f":"SUM(H75:H86)","v":12}]
["福建三明金叶复烤有限公司","Y01","福建三明金叶复烤有限公司","管理类","烟叶分级管理员","大学本科","生物科学类、农业工程类、生物工程类、植物生产类、自然保护与环境生态类、农业经济管理类",1]
[null,"Y02","福建三明金叶复烤有限公司","管理类","机械管理员","大学本科","机械类、仪器类、力学类",1]
[null,"Y03","福建三明金叶复烤有限公司","管理类","综合事务员","大学本科","物流管理与工程类、工商管理类、公共管理类",1]
[null,null,"小计",{"$nulls":4},{"$f":"SUM(H88:H90)","v":3}]
["福建武夷烟叶有限公司","Z01","福建武夷烟叶有限公司","管理类","会计","大学本科及以上","会计学、财务管理、审计学等相关专业",1]
[null,null,"小计",{"$nulls":4},{"$f":"SUM(H92:H92)","v":1}]
["管理类（第二批）招聘计划总计",null,null,{"$f":"SUM(H7,H10,H18,H21,H31,H38,H50,H74,H87,H91,H93)","v":79}]
["业务类、生产操作类招聘岗位（69个）"]
["单位","岗位编码","具体用人单位","招聘需求"]
[{"$nulls":3},"岗位类别","岗位名称","学历要求","专业要求","需求\n人数","其它要求"]
["厦门市烟草专卖局（公司）","D03","厦门市集美区烟草专卖局","业务类","专卖管理员","大学本科及以上","法学类、计算机类等相关专业",1]
[null,"D04","厦门市烟草专卖局第一分局","业务类","专卖管理员","大学本科及以上","法学类、计算机类等相关专业",1]
[null,null,"小计",{"$nulls":4},{"$f":"SUM(H98:H99)","v":2}]
["漳州市烟草专卖局（公司）","E07","漳州市局卷烟物流配送中心","业务类","信息统计员","大学本科","计算机科学与技术、电子信息工程、数据科学与大数据技术",1]
[null,"E08","漳州市局卷烟物流配送中心","业务类","综合事务员","大学本科","物流管理、物流工程、大数据管理与应用",1]
[null,"E09","漳州市龙海区烟草专卖局","业务类","客户经理","大学本科","市场营销、工商管理、电子商务",1]
[null,"E10","漳州市龙海区烟草专卖局","业务类","专卖管理员","大学本科","侦查学、经济犯罪侦查、技术侦查学",1]
[null,"E11","漳州市长泰区烟草专卖局","业务类","专卖管理员","大学本科","法学类",1]
[null,"E12","漳浦县烟草专卖局","业务类","客户经理","大学本科","市场营销、工商管理、电子商务",1]
[null,"E13","东山县烟草专卖局","业务类","专卖管理员","大学本科","法学类",1]
[null,null,"小计",{"$nulls":4},{"$f":"SUM(H101:H107)","v":7}]
["龙岩市烟草专卖局（公司）","F12","连城县烟草专卖局","生产操作类","烟技员","大学本科","植物生产类、自然保护与环境生态类、农业工程类、生物科学类、环境科学与工程类、生物工程类、农业经济管理类、计算机类、电气类、机械类。",4]
[null,"F13","上杭县烟草专卖局","生产操作类","烟技员","大学本科","植物生产类、自然保护与环境生态类、农业工程类、生物科学类、环境科学与工程类、生物工程类、农业经济管理类、计算机类、电气类、机械类。",2]
[null,"F14","武平县烟草专卖局","生产操作类","烟技员","大学本科","植物生产类、自然保护与环境生态类、农业工程类、生物科学类、环境科学与工程类、生物工程类、农业经济管理类、计算机类、电气类、机械类。",3]
[null,"F15","龙岩市永定区烟草专卖局","生产操作类","烟技员","大学本科","植物生产类、自然保护与环境生态类、农业工程类、生物科学类、环境科学与工程类、生物工程类、农业经济管理类、计算机类、电气类、机械类。",2]
[null,"F16","漳平市烟草专卖局","生产操作类","烟技员","大学本科","植物生产类、自然保护与环境生态类、农业工程类、生物科学类、环境科学与工程类、生物工程类、农业经济管理类、计算机类、电气类、机械类。",1]
[null,"F17","长汀县烟草专卖局","生产操作类","烟技员","大学本科","植物生产类、自然保护与环境生态类、农业工程类、生物科学类、环境科学与工程类、生物工程类、农业经济管理类、计算机类、电气类、机械类。",3]
[null,null,"小计",{"$nulls":4},{"$f":"SUM(H109:H114)","v":15}]
["三明市烟草专卖局（公司）","G24","三明市局卷烟物流配送中心","业务类","机械设备操作员","大学本科","机械类",1]
[null,"G25","尤溪县烟草专卖局","生产操作类","烟技员","大学本科","植物生产类、自然保护与环境生态类、农业工程类、生物科学类",3]
[null,"G26","明溪县烟草专卖局","业务类","专卖管理员","大学本科","法学类",2]
[null,"G27","清流县烟草专卖局","生产操作类","烟技员","大学本科","植物生产类、自然保护与环境生态类、农业工程类、生物科学类",3]
[null,"G28","建宁县烟草专卖局","生产操作类","烟技员","大学本科","植物生产类、自然保护与环境生态类、农业工程类、生物科学类",2]
[null,"G29","泰宁县烟草专卖局","生产操作类","烟技员","大学本科","植物生产类、自然保护与环境生态类、农业工程类、生物科学类",2]
[null,"G30","将乐县烟草专卖局","业务类","专卖管理员","大学本科","法学类",1]
[null,"G31","将乐县烟草专卖局","生产操作类","烟技员","大学本科","植物生产类、自然保护与环境生态类、农业工程类、生物科学类",1]
[null,"G32","宁化县烟草专卖局","生产操作类","烟技员","大学本科","植物生产类、自然保护与环境生态类、农业工程类、生物科学类",3]
[null,"G33","大田县烟草专卖局","业务类","客户经理","大学本科","经济学类、工商管理类",1]
[null,"G34","大田县烟草专卖局","生产操作类","烟技员","大学本科","植物生产类、自然保护与环境生态类、农业工程类、生物科学类",1]
[null,"G35","大田县烟草专卖局","业务类","专卖管理员","大学本科","法学类",1]
[null,null,"小计",{"$nulls":4},{"$f":"SUM(H116:H127)","v":21}]
["南平市烟草专卖局（公司）","H13","邵武市烟草专卖局","生产操作类","烟技员","大学本科","植物生产类、自然保护与环境生态类、农业工程类、生物科学类、生物工程类、计算机类",2]
[null,"H14","建阳区烟草专卖局","生产操作类","烟技员","大学本科","植物生产类、自然保护与环境生态类、农业工程类、生物科学类、生物工程类、计算机类",1]
[null,"H15","浦城县烟草专卖局","生产操作类","烟技员","大学本科","植物生产类、自然保护与环境生态类、农业工程类、生物科学类、生物工程类、计算机类",2]
[null,"H16","光泽县烟草专卖局","生产操作类","烟技员","大学本科","植物生产类、自然保护与环境生态类、农业工程类、生物科学类、生物工程类、计算机类",3]
[null,"H17","松溪县烟草专卖局","生产操作类","烟技员","大学本科","植物生产类、自然保护与环境生态类、农业工程类、生物科学类、生物工程类、计算机类",1]
[null,"H18","武夷山市烟草专卖局","生产操作类","烟技员","大学本科","植物生产类、自然保护与环境生态类、农业工程类、生物科学类、生物工程类、计算机类",1]
[null,"H19","南平市延平区烟草专卖局","业务类","专卖管理员","大学本科","计算机科学与技术、软件工程、网络工程",1]
[null,null,"小计",{"$nulls":4},{"$f":"SUM(H129:H135)","v":11}]
["福建三明金叶复烤有限公司","Y04","福建三明金叶复烤有限公司","生产操作类","维修工（机械维修）","大学本科","机械类、仪器类、力学类",3]
[null,"Y05","福建三明金叶复烤有限公司","生产操作类","维修工（电气维修）","大学本科","电气类、自动化类、电子信息类",3]
[null,"Y06","福建三明金叶复烤有限公司","生产操作类","烟叶分级工","大学本科","生物科学类、农业工程类、生物工程类、植物生产类、自然保护与环境生态类、农业经济管理类",4]
[null,null,"小计",{"$nulls":4},{"$f":"SUM(H137:H139)","v":10}]
["福建武夷烟叶有限公司","Z02","福建武夷烟叶有限公司","生产操作类","设备维修员","大学本科及以上","机械类及相关专业",1]
[null,"Z03","福建武夷烟叶有限公司","生产操作类","工艺技术员","大学本科及以上","食品科学与工程、食品质量与安全、食品安全与检测等相关专业",1]
[null,"Z04","福建武夷烟叶有限公司","生产操作类","仓储醇化员","大学本科及以上","农学、植物保护、烟草等相关专业",1]
[null,null,"小计",{"$nulls":4},{"$f":"SUM(H141:H143)","v":3}]
["业务类、生产操作类招聘计划总计",null,null,{"$f":"SUM(H100,H108,H115,H128,H136,H140,H144)","v":69}]
["（第二批）招聘计划总计",null,null,{"$f":"D145+D94","v":148}]